bitfinex-derivatives/quotes_BTCF0:USTF0_20250308
["timestamp","ask_amount","ask_price","bid_price","bid_amount"]
[1741402148877,0.1048,86002.0,85999.0,0.24205474]
[1741402149080,0.00174492,86003.0,86001.0,0.1163102]
[1741402149274,8.201e-05,86013.0,86008.0,0.05815]
[1741402149488,8.201e-05,86013.0,86010.0,0.058149]
[1741402149690,8.201e-05,86013.0,86012.0,0.1162954]
[1741402149876,8.201e-05,86013.0,86012.0,0.13665175]
[1741402150183,8.201e-05,86013.0,86012.0,0.499852]
[1741402150792,8.201e-05,86013.0,86012.0,0.3835566]
[1741402151983,8.201e-05,86013.0,86012.0,0.32564668]
[1741402152179,8.201e-05,86013.0,86012.0,0.44194208]
[1741402152389,8.201e-05,86013.0,86012.0,0.44205066]
[1741402152683,0.00232471,86032.0,86012.0,0.44205066]
[1741402152684,0.00232471,86032.0,86024.0,0.1162783]
[1741402152885,0.1055,86026.0,86025.0,0.2145]
[1741402153087,0.1055,86026.0,86025.0,0.34691513]
[1741402153683,0.1055,86026.0,86025.0,0.2145]
[1741402153887,0.1055,86026.0,86025.0,0.34258642]
[1741402154087,0.2101,86026.0,86025.0,0.34258642]
[1741402154493,0.2101,86026.0,86025.0,0.23298642]
[1741402154893,0.2101,86026.0,86025.0,0.34926422]
[1741402155079,0.2101,86026.0,86025.0,0.2913543]
[1741402155278,0.2101,86026.0,86025.0,0.1750765]
[1741402156099,0.2101,86026.0,86025.0,0.2913543]
[1741402156801,0.2101,86026.0,86025.0,0.4937543]
[1741402157391,0.2101,86026.0,86025.0,0.2775765]
[1741402158093,0.2101,86026.0,86025.0,0.21966658]
[1741402159892,0.2101,86026.0,86025.0,0.31986658]
[1741402160503,0.2101,86026.0,86025.0,0.21966658]
[1741402161095,0.2101,86026.0,86025.0,0.16175666]
[1741402164103,0.2101,86026.0,86025.0,0.10384674]
[1741402165099,0.18240831,86026.0,86025.0,0.22012454]
[1741402165304,0.18240831,86026.0,86025.0,0.00134674]
[1741402167212,0.18240831,86026.0,86024.0,0.05971592]
[1741402167403,0.18240831,86026.0,86024.0,0.16651592]
[1741402167708,0.18240831,86026.0,86025.0,0.12279469]
[1741402169699,0.11703879,86026.0,86025.0,0.12279469]
[1741402169904,0.11703879,86026.0,86025.0,0.22949469]
[1741402170207,0.11703879,86026.0,86025.0,0.17158477]
[1741402170607,0.11703879,86026.0,86025.0,0.28786257]
[1741402171110,0.11703879,86026.0,86025.0,0.17158477]
[1741402172914,0.1046,86026.0,86025.0,0.28786257]
[1741402173213,0.1046,86026.0,86025.0,0.39676257]
[1741402173415,0.1046,86026.0,86025.0,0.33885265]
[1741402174107,0.00174423,86044.0,86025.0,0.22257485]
[1741402174307,0.3608,86059.0,86046.0,0.116249]
[1741402174613,0.3608,86059.0,86049.0,0.45269379]
[1741402174908,0.1162348,86057.0,86049.0,0.45269379]
[1741402175211,0.1162348,86057.0,86050.0,0.14498392]
[1741402175405,0.1162348,86057.0,86051.0,0.01401827]
[1741402175599,0.1162348,86057.0,86052.0,0.01401827]
[1741402175816,0.1162348,86057.0,86053.0,0.01401827]
[1741402176013,0.1162348,86057.0,86054.0,0.01401827]
[1741402176203,0.1162348,86057.0,86055.0,0.01401827]
[1741402176405,0.1162348,86057.0,86054.0,0.08950618]
[1741402176604,0.3608,86059.0,86056.0,0.12427316]
[1741402176912,0.1162345,86057.0,86055.0,0.12427316]
[1741402177217,0.1162345,86057.0,86054.0,0.22677316]
[1741402177511,0.2084,86056.0,86054.0,0.1025]
[1741402177711,0.2084,86056.0,86055.0,0.12180834]
[1741402178206,0.14595175,86056.0,86055.0,0.14448684]
[1741402179510,0.14595175,86056.0,86055.0,0.08657692]
[1741402180214,0.14595175,86056.0,86055.0,0.20281412]
[1741402180408,0.14595175,86056.0,86055.0,0.31051412]
[1741402180614,0.08060147,86056.0,86055.0,0.41941412]
[1741402180812,0.08060147,86056.0,86055.0,0.3464511]
[1741402181214,0.08060147,86056.0,86055.0,0.41941412]
[1741402181712,0.08060147,86056.0,86055.0,0.30317692]
[1741402181914,0.00012857,86060.0,86055.0,0.30317692]
[1741402182110,0.058102,86080.0,86059.0,0.3608]
[1741402182316,0.0581049,86076.0,86061.0,0.1399575]
[1741402182608,0.1162139,86073.0,86062.0,0.0618142]
[1741402182809,0.1162115,86075.0,86063.0,0.0226785]
[1741402183003,0.1162115,86075.0,86062.0,0.13054076]
[1741402183004,0.00011481,86077.0,86064.0,0.02280483]
[1741402183211,0.00011481,86077.0,86066.0,0.1162212]
[1741402183409,0.00011481,86077.0,86067.0,0.1232785]
[1741402183614,0.00011481,86077.0,86068.0,0.0226785]
[1741402183809,0.10771481,86077.0,86069.0,0.0226785]
[1741402184116,0.001,86071.0,86070.0,0.1296785]
[1741402184517,0.001,86071.0,86070.0,0.35882321]
[1741402185410,0.001,86071.0,86070.0,0.30091329]
[1741402185713,0.10871481,86077.0,86070.0,0.30091329]
[1741402186018,0.10971481,86077.0,86071.0,0.0226785]
[1741402186318,0.10871481,86077.0,86072.0,0.0226785]
[1741402186509,0.10771481,86077.0,86073.0,0.1225785]
[1741402186711,0.10771481,86077.0,86074.0,0.0226785]
[1741402186911,0.10771481,86077.0,86075.0,0.0226785]
[1741402187112,0.1019,86076.0,86075.0,0.0999]
[1741402187618,0.1019,86076.0,86075.0,0.2224479]
[1741402187816,0.2101,86076.0,86075.0,0.2224479]
[1741402188516,0.2101,86076.0,86075.0,0.17849604]
[1741402189019,0.2101,86076.0,86075.0,0.20466931]
[1741402189418,0.2121,86076.0,86075.0,0.20466931]
[1741402190119,0.3283089,86076.0,86075.0,0.20466931]
[1741402190416,0.3313089,86076.0,86075.0,0.20466931]
[1741402190629,0.3313089,86076.0,86075.0,0.01395806]
[1741402191612,0.1162224,86066.0,86065.0,0.09190954]
[1741402191812,0.07992021,86066.0,86065.0,0.09190954]
[1741402192009,0.07992021,86066.0,86065.0,0.21272676]
[1741402192410,0.1039,86067.0,86065.0,0.23767607]
[1741402192617,0.2201215,86067.0,86065.0,0.23767607]
[1741402192918,0.2201215,86067.0,86066.0,0.0994]
[1741402193413,0.2201215,86067.0,86066.0,0.22872631]
[1741402194520,0.2201215,86067.0,86066.0,0.17081639]
[1741402194821,0.2201215,86067.0,86066.0,0.27981639]
[1741402197219,0.22022649,86067.0,86066.0,0.27981639]
[1741402197620,0.22022649,86067.0,86066.0,0.22190647]
[1741402200718,0.10400499,86067.0,86066.0,0.16399655]
[1741402201230,0.00010499,86067.0,86066.0,0.64101895]
[1741402202221,0.222309,86076.0,86066.0,0.64101895]
[1741402202418,0.222309,86076.0,86073.0,0.3608]
[1741402202615,0.1061,86076.0,86073.0,0.3608]
[1741402202820,0.1162102,86075.0,86074.0,0.23736784]
[1741402203229,0.2214102,86075.0,86074.0,0.1064]
[1741402203624,0.2214102,86075.0,86074.0,0.17112457]
[1741402204733,0.2214102,86075.0,86074.0,0.04849008]
[1741402205829,0.0581066,86073.0,86067.0,0.0987]
[1741402206034,0.1083,86072.0,86067.0,0.0987]
[1741402206334,0.1083,86072.0,86071.0,0.4770156]
[1741402206728,0.1083,86072.0,86071.0,0.30289008]
[1741402206934,0.1083,86072.0,86071.0,0.42486366]
[1741402207131,0.1083,86072.0,86071.0,0.53196366]
[1741402207336,0.1083,86072.0,86071.0,0.74757926]
[1741402208437,0.1083,86072.0,86071.0,0.63136366]
[1741402208827,0.1083,86072.0,86071.0,0.74757926]
[1741402209729,0.1083,86072.0,86071.0,0.68966934]
[1741402209932,0.1083,86072.0,86071.0,0.57345374]
[1741402210526,0.41954,86083.0,86082.0,0.1162008]
[1741402210527,0.00064,86083.0,86082.0,0.1162008]
[1741402210726,0.3608,86086.0,86082.0,0.1162008]
[1741402210934,0.3608,86086.0,86082.0,0.13013302]
[1741402211240,0.3608,86086.0,86083.0,0.3154]
[1741402211639,0.3608,86086.0,86084.0,0.12731408]
[1741402212037,0.3608,86086.0,86085.0,0.2035]
[1741402212543,0.1161934,86088.0,86085.0,0.33081408]
[1741402212744,0.05983926,86089.0,86085.0,0.27290416]
[1741402212935,0.2150948,86087.0,86085.0,0.27290416]
[1741402213139,0.1161954,86086.0,86085.0,0.12731408]
[1741402213640,0.0989,86087.0,86081.0,0.12289597]
[1741402213842,0.0989,86085.0,86079.0,0.3608]
[1741402214138,0.0989,86085.0,86081.0,0.12285804]
[1741402214536,0.0989,86085.0,86079.0,0.4776846]
[1741402214843,0.0989,86085.0,86082.0,0.12402105]
[1741402215042,0.1034,86084.0,86082.0,0.12402105]
[1741402215240,0.1034,86084.0,86072.0,0.1021]
[1741402215540,0.0581004,86082.0,86072.0,0.1021]
[1741402215735,0.1162047,86080.0,86073.0,0.07606988]
[1741402216039,0.2026,86081.0,86073.0,0.07606988]
[1741402216242,0.2026,86079.0,86073.0,0.07606988]
[1741402216447,0.1162116,86074.0,86073.0,0.07606988]
[1741402216646,0.0581047,86076.0,86073.0,0.07606988]
[1741402216832,0.1987,86075.0,86073.0,0.07606988]
[1741402217744,0.1987,86075.0,86074.0,0.1009]
[1741402217949,0.1987,86075.0,86073.0,0.07606988]
[1741402218156,0.1987,86075.0,86074.0,0.12811745]
[1741402218742,0.1987,86075.0,86073.0,0.1162124]
[1741402218944,0.0992,86075.0,86074.0,0.24225111]
[1741402219142,0.36148,86087.0,86074.0,0.24225111]
[1741402219143,0.00068,86087.0,86084.0,0.1161976]
[1741402219340,0.1027,86086.0,86085.0,0.2023]
[1741402219545,0.1027,86086.0,86085.0,0.32833951]
[1741402219955,0.1027,86086.0,86085.0,0.2023]
[1741402220246,0.1027,86086.0,86085.0,0.33184284]
[1741402220454,0.1027,86086.0,86085.0,0.44803954]
[1741402220653,0.1027,86086.0,86085.0,0.33184284]
[1741402221847,0.1027,86086.0,86085.0,0.27393292]
[1741402222251,0.0581042,86077.0,86065.0,0.38574931]
[1741402222550,0.1162129,86073.0,86072.0,0.55610845]
[1741402223056,0.1162129,86073.0,86072.0,0.68916931]
[1741402224953,0.1162129,86073.0,86072.0,0.63125939]
[1741402227562,0.1162129,86073.0,86072.0,0.13306086]
[1741402227868,0.1162129,86073.0,86072.0,0.07515094]
[1741402228062,0.1162197,86068.0,86067.0,0.12438025]
[1741402228260,0.1999,86076.0,86072.0,0.12438025]
[1741402228466,0.1162129,86073.0,86072.0,0.12438025]
[1741402228660,0.0581071,86072.0,86067.0,0.12438025]
[1741402228858,0.0581089,86070.0,86066.0,0.7047844]
[1741402229068,0.116221,86067.0,86066.0,0.7040644]
[1741402229563,0.05088353,86067.0,86066.0,0.83086689]
[1741402230359,0.05088353,86067.0,86066.0,0.93676689]
[1741402231066,0.05088353,86067.0,86066.0,0.87885697]
[1741402231761,0.05088353,86067.0,86066.0,0.88744571]
[1741402231961,0.05088353,86067.0,86066.0,0.78154571]
[1741402232160,0.05088353,86067.0,86066.0,0.65474322]
[1741402232767,0.15638353,86067.0,86066.0,0.65474322]
[1741402233963,0.15638353,86067.0,86066.0,0.5968333]
[1741402234367,0.15638353,86067.0,86066.0,0.6301333]
[1741402234769,0.15638353,86067.0,86066.0,0.04188874]
[1741402234974,0.37408353,86067.0,86066.0,0.04188874]
[1741402235566,0.52408353,86067.0,86066.0,0.04188874]
[1741402235969,0.37408353,86067.0,86066.0,0.04188874]
[1741402236978,0.37408353,86067.0,86063.0,0.00017433]
[1741402236979,0.3232,86067.0,86054.0,0.6116446]
[1741402237167,0.4770372,86055.0,86054.0,0.6116446]
[1741402237776,0.116244,86050.0,86049.0,0.1076]
[1741402237974,0.116244,86050.0,86049.0,0.11653738]
[1741402239175,0.116244,86050.0,86049.0,0.00893738]
[1741402239371,0.477044,86050.0,86049.0,0.00893738]
[1741402239771,0.477044,86050.0,86049.0,0.02261661]
[1741402240278,0.116248,86047.0,86046.0,0.52148784]
[1741402240480,0.116248,86047.0,86046.0,0.52084784]
[1741402240977,0.939948,86047.0,86046.0,0.52084784]
[1741402241779,0.1162548,86042.0,86041.0,0.10527433]
[1741402242984,0.1162548,86042.0,86041.0,0.11415709]
[1741402243170,0.1162548,86042.0,86041.0,0.05624717]
[1741402243576,0.1162548,86042.0,86041.0,0.28941547]
[1741402243979,0.2237548,86042.0,86041.0,0.28941547]
[1741402244674,0.2237548,86042.0,86041.0,0.13775106]
[1741402245078,0.3228548,86042.0,86041.0,0.13775106]
[1741402245487,0.32294853,86042.0,86041.0,0.00888276]
[1741402245684,0.1162562,86041.0,86040.0,9.478e-05]
[1741402245885,0.2184562,86041.0,86040.0,9.478e-05]
[1741402246074,0.2184562,86041.0,86031.0,0.48493974]
[1741402246075,0.2031,86041.0,86031.0,0.45989407]
[1741402246278,0.1162683,86032.0,86031.0,0.45989407]
[1741402246777,0.1162683,86032.0,86031.0,0.5483631]
[1741402246986,0.4770683,86032.0,86031.0,0.5483631]
[1741402247188,0.4770683,86032.0,86031.0,0.54845846]
[1741402247381,0.5835683,86032.0,86031.0,0.54845846]
[1741402247781,0.5835683,86032.0,86031.0,0.55696104]
[1741402248485,0.1162683,86032.0,86031.0,0.55696104]
[1741402248684,0.0581284,86041.0,86031.0,0.55696104]
[1741402248685,0.00017433,86040.0,86031.0,0.23656211]
[1741402249085,0.1162643,86035.0,86031.0,0.23656211]
[1741402249391,0.1162608,86038.0,86032.0,0.04649008]
[1741402249588,0.00017433,86040.0,86032.0,0.04649008]
[1741402249789,0.1162628,86037.0,86033.0,0.13153205]
[1741402250180,0.3847296,86039.0,86034.0,0.1069]
[1741402250181,0.38532961,86039.0,86034.0,0.1069]
[1741402250381,0.1162636,86036.0,86034.0,0.1069]
[1741402250583,0.1162636,86036.0,86035.0,0.13153205]
[1741402252088,0.3266,86039.0,86035.0,0.13153205]
[1741402252395,0.3266,86039.0,86036.0,0.04279008]
[1741402252597,0.3266,86039.0,86036.0,0.14459008]
[1741402252784,0.3266,86039.0,86037.0,0.12300831]
[1741402252987,0.4428594,86039.0,86037.0,0.12300831]
[1741402253189,0.3266,86039.0,86038.0,0.0984]
[1741402253489,0.2177,86039.0,86038.0,0.0984]
[1741402253688,0.00017433,86040.0,86038.0,0.22140831]
[1741402255099,0.00017433,86040.0,86039.0,0.1162589]
[1741402255298,0.00017433,86040.0,86039.0,0.05836374]
[1741402255592,0.00017433,86040.0,86039.0,0.39302097]
[1741402256095,9.373e-05,86042.0,86041.0,0.1162562]
[1741402256289,0.0988,86056.0,86044.0,0.0581257]
[1741402256487,0.0988,86056.0,86047.0,0.3608]
[1741402256692,0.156918,86056.0,86047.0,0.3608]
[1741402256892,0.1162392,86054.0,86048.0,0.12955344]
[1741402257294,0.00174378,86057.0,86049.0,0.2082]
[1741402257295,0.2078,86053.0,86049.0,0.2082]
[1741402257597,0.3240406,86053.0,86049.0,0.2082]
[1741402257903,0.2078,86053.0,86050.0,0.12955344]
[1741402258288,0.2078,86053.0,86051.0,0.15030484]
[1741402258688,0.2078,86053.0,86052.0,0.12343573]
[1741402258894,0.3240399,86053.0,86052.0,0.12343573]
[1741402259197,0.2078,86053.0,86052.0,0.12343573]
[1741402259394,0.2078,86053.0,86052.0,0.22403573]
[1741402259703,0.1061,86053.0,86052.0,0.34027703]
[1741402260492,0.00174378,86057.0,86056.0,0.1162359]
[1741402260697,0.00174378,86057.0,86056.0,0.4770359]
[1741402260901,0.00174378,86057.0,86056.0,0.60128554]
[1741402261300,0.00174378,86057.0,86056.0,0.54339038]
[1741402261694,0.00174378,86057.0,86056.0,0.64809038]
[1741402262604,0.00174378,86057.0,86056.0,0.68074973]
[1741402264401,0.00174378,86057.0,86056.0,0.62240899]
[1741402264610,0.00174378,86057.0,86056.0,0.73864489]
[1741402266013,0.00174378,86057.0,86056.0,0.62240899]
[1741402266195,0.11797828,86057.0,86056.0,0.15690899]
[1741402266402,0.11797828,86057.0,86056.0,0.16553553]
[1741402266798,0.22277828,86057.0,86056.0,0.16553553]
[1741402267395,0.22277828,86057.0,86056.0,0.09901383]
[1741402267603,0.22277828,86057.0,86056.0,0.06635448]
[1741402267912,0.1162535,86043.0,86042.0,0.03255574]
[1741402268311,0.05089599,86043.0,86042.0,0.03255574]
[1741402269009,0.25709599,86043.0,86042.0,0.03255574]
[1741402269204,0.25709599,86043.0,86042.0,0.00017433]
[1741402269408,0.61789599,86043.0,86042.0,0.00017433]
[1741402269803,0.1162683,86032.0,86031.0,9.536e-05]
[1741402270213,0.1162683,86032.0,86031.0,0.1253676]
[1741402270507,0.1162683,86032.0,86031.0,0.06747244]
[1741402270697,0.1162683,86032.0,86031.0,0.07637611]
[1741402270904,0.46280001,86035.0,86014.0,0.74968]
[1741402270905,0.1162859,86019.0,86014.0,0.7316]
[1741402271404,0.4770859,86019.0,86018.0,0.12758203]
[1741402272004,0.4770859,86019.0,86018.0,0.00174378]
[1741402272204,0.058144,86018.0,86016.0,0.62337678]
[1741402272404,0.1162886,86017.0,86016.0,0.62337678]
[1741402272613,0.3339886,86017.0,86016.0,0.29487678]
[1741402272907,0.1162967,86011.0,86010.0,0.00017433]
[1741402273112,0.4770967,86011.0,86010.0,0.00017433]
[1741402273412,0.6947967,86011.0,86008.0,0.70443402]
[1741402273611,0.1162994,86009.0,86008.0,0.70379402]
[1741402274113,0.11642587,86009.0,86008.0,0.70379402]
[1741402275118,0.33412587,86009.0,86008.0,0.70379402]
[1741402275802,0.48412587,86009.0,86008.0,0.70379402]
[1741402276213,0.69642587,86009.0,86008.0,0.70379402]
[1741402276606,0.69642587,86009.0,86008.0,0.48876667]
[1741402276803,0.1163102,86001.0,86000.0,0.00029694]
[1741402277007,0.5576302,86001.0,86000.0,0.00029694]
[1741402277407,0.7715302,86001.0,86000.0,0.00029694]
[1741402279617,0.7715302,86001.0,85988.0,0.15050178]
[1741402279618,0.1163265,85989.0,85988.0,0.15050178]
[1741402280411,0.3187265,85989.0,85988.0,0.15050178]
[1741402280611,0.3187265,85989.0,85988.0,0.15062569]
[1741402282218,0.3608,85994.0,85988.0,0.15062569]
[1741402282618,0.00017444,85997.0,85992.0,0.3608]
[1741402282822,0.116318,85996.0,85992.0,0.3608]
[1741402283018,0.00017444,85997.0,85993.0,0.1245076]
[1741402284111,0.36144,86001.0,85995.0,0.116318]
[1741402284424,0.00012647,86009.0,86000.0,0.3608]
[1741402284623,0.1163048,86005.0,86000.0,0.3608]
[1741402284824,0.1163027,86007.0,86001.0,0.12865603]
[1741402285011,0.00012647,86009.0,86001.0,0.12865603]
[1741402285528,0.1163015,86008.0,86001.0,0.12865603]
[1741402285723,0.00012647,86009.0,86002.0,0.2046]
[1741402286227,0.00012647,86009.0,86003.0,0.12925478]
[1741402287524,0.00012647,86009.0,86004.0,0.1083]
[1741402288027,0.00012647,86009.0,86005.0,0.3449833]
[1741402288423,0.00012647,86009.0,86008.0,0.4771008]
[1741402288628,0.00017444,86014.0,86013.0,0.05839884]
[1741402288829,0.2177,86028.0,86012.0,0.1065]
[1741402289033,0.00174454,86029.0,86026.0,0.3608]
[1741402289219,0.00174454,86029.0,86028.0,0.1162737]
[1741402289531,0.00174454,86029.0,86027.0,0.45569492]
[1741402289725,0.00174454,86029.0,86028.0,0.24259482]
[1741402289925,0.00174454,86029.0,86028.0,0.44779482]
[1741402290232,0.00017444,86037.0,86028.0,0.33152112]
[1741402290429,0.00017444,86037.0,86036.0,0.4770629]
[1741402290727,0.00017444,86037.0,86036.0,0.50937447]
[1741402290936,0.00011488,86045.0,86036.0,0.51610204]
[1741402291125,0.00011488,86045.0,86038.0,0.0581297]
[1741402291322,0.0017439,86047.0,86036.0,0.51678204]
[1741402291533,0.36144,86060.0,86048.0,0.1162467]
[1741402291723,0.00064,86060.0,86053.0,0.1162388]
[1741402291921,0.3608,86068.0,86059.0,0.4770307]
[1741402292120,0.3608,86068.0,86060.0,0.2012]
[1741402292121,0.00017434,86065.0,86060.0,0.2012]
[1741402292330,0.00017434,86065.0,86060.0,0.3174297]
[1741402292721,0.00017434,86065.0,86061.0,0.12892352]
[1741402292918,0.00017434,86065.0,86063.0,0.1162252]
[1741402293119,0.00017434,86065.0,86064.0,0.105]
[1741402293321,0.00017434,86065.0,86064.0,0.34828022]
[1741402293826,0.00017434,86065.0,86064.0,0.46450532]
[1741402294029,0.00017434,86065.0,86064.0,0.34828022]
[1741402294229,0.00217434,86065.0,86064.0,0.34828022]
[1741402294534,0.00517434,86065.0,86064.0,0.34828022]
[1741402294732,0.00517434,86065.0,86064.0,0.29905625]
[1741402294925,0.11939804,86065.0,86064.0,0.17190641]
[1741402296538,0.11639804,86065.0,86064.0,0.17190641]
[1741402297038,0.11639804,86065.0,86064.0,0.16323522]
[1741402297822,0.11639804,86065.0,86064.0,0.10534006]
[1741402298137,0.11639804,86065.0,86064.0,0.10540011]
[1741402300732,0.00017434,86065.0,86064.0,0.04750495]
[1741402301029,0.00017434,86065.0,86064.0,0.64773881]
[1741402301229,0.00013689,86074.0,86068.0,0.1162194]
[1741402301424,0.00013689,86074.0,86064.0,0.53151371]
[1741402301425,0.00013689,86074.0,86069.0,0.11359043]
[1741402301627,0.00013689,86074.0,86071.0,0.1162148]
[1741402301833,0.00013689,86074.0,86072.0,0.11789043]
[1741402302038,0.00013689,86074.0,86073.0,0.01365931]
[1741402302233,0.00013689,86074.0,86073.0,0.12987221]
[1741402302440,0.00013689,86074.0,86073.0,0.25027556]
[1741402303035,0.11634849,86074.0,86073.0,0.25027556]
[1741402303738,0.00013689,86074.0,86073.0,0.25027556]
[1741402303939,0.00013689,86074.0,86073.0,0.1923804]
[1741402304339,0.11634849,86074.0,86073.0,0.1923804]
[1741402305532,0.00013689,86074.0,86073.0,0.1923804]
[1741402306739,0.00013689,86074.0,86073.0,0.2009719]
[1741402306940,0.00013689,86074.0,86073.0,0.14307674]
[1741402308639,0.11634849,86074.0,86073.0,0.14307674]
[1741402309840,0.11634849,86074.0,86073.0,0.08518158]
[1741402313041,0.11634849,86074.0,86073.0,0.02728642]
[1741402314937,0.11634849,86074.0,86073.0,0.01869492]
[1741402315933,0.11634849,86074.0,86068.0,0.09174532]
[1741402316133,0.1162157,86071.0,86068.0,0.12024364]
[1741402316334,0.2092,86070.0,86069.0,0.12803226]
[1741402316943,0.2092,86070.0,86069.0,0.22543226]
[1741402317646,0.1067,86070.0,86069.0,0.22543226]
[1741402318350,0.1067,86070.0,86069.0,0.34165056]
[1741402318547,0.00013689,86074.0,86073.0,0.1162129]
[1741402318943,0.2032,86081.0,86073.0,0.06715546]
[1741402319254,0.2032,86081.0,86076.0,0.1162082]
[1741402319553,0.16690562,86081.0,86077.0,0.11116275]
[1741402319755,0.16690562,86081.0,86078.0,0.01376275]
[1741402319756,0.06430562,86081.0,86078.0,0.01376275]
[1741402319958,0.06430562,86081.0,86079.0,0.01376275]
[1741402320146,0.16690562,86081.0,86080.0,0.01376275]
[1741402320650,0.16690562,86081.0,86080.0,0.12899931]
[1741402321161,0.16690562,86081.0,86079.0,0.13121395]
[1741402321662,0.1162048,86080.0,86076.0,0.2071]
[1741402321961,0.16690562,86081.0,86080.0,0.13121395]
[1741402321962,0.28310812,86081.0,86080.0,0.13121395]
[1741402322164,0.06430562,86081.0,86079.0,0.13216296]
[1741402322359,0.06430562,86081.0,86080.0,0.2071]
[1741402322556,0.06430562,86081.0,86080.0,0.33926296]
[1741402322761,0.06430562,86081.0,86080.0,0.2071]
[1741402323067,0.18050772,86081.0,86080.0,0.22725772]
[1741402324160,0.06430562,86081.0,86080.0,0.22725772]
[1741402324666,0.18050772,86081.0,86080.0,0.22725772]
[1741402325058,0.18050772,86081.0,86080.0,0.12655772]
[1741402325466,0.06430562,86081.0,86076.0,0.13177835]
[1741402325659,0.1162081,86077.0,86076.0,0.13177835]
[1741402325853,0.1162081,86077.0,86076.0,0.1036]
[1741402326059,0.1162089,86076.0,86075.0,0.3608]
[1741402326567,0.1162089,86076.0,86075.0,0.48429547]
[1741402327362,0.1162089,86076.0,86075.0,0.59139547]
[1741402327566,0.1162077,86077.0,86075.0,0.59139547]
[1741402328063,0.1162077,86077.0,86075.0,0.53350031]
[1741402328265,0.1162077,86077.0,86075.0,0.33849547]
[1741402328567,0.05087553,86077.0,86075.0,0.33849547]
[1741402328768,0.1063,86078.0,86077.0,0.1162075]
[1741402328960,0.1063,86078.0,86075.0,0.33849547]
[1741402329159,0.1063,86078.0,86077.0,0.13135843]
[1741402329361,0.2806093,86078.0,86077.0,0.13135843]
[1741402329562,0.1162075,86077.0,86076.0,0.13135843]
[1741402329762,0.1644031,86078.0,86075.0,0.1071]
[1741402329962,0.1162089,86076.0,86075.0,0.1071]
[1741402330362,0.1162067,86078.0,86076.0,0.13187893]
[1741402330568,0.1162067,86078.0,86075.0,0.34497893]
[1741402330770,0.1162067,86078.0,86075.0,0.2131]
[1741402331161,0.1162067,86078.0,86076.0,0.07500924]
[1741402331471,0.1162037,86080.0,86076.0,0.07500924]
[1741402331672,0.1162037,86080.0,86077.0,0.2062]
[1741402331866,0.1162058,86079.0,86077.0,0.2062]
[1741402332267,0.1162058,86079.0,86078.0,0.12819124]
[1741402333766,0.058101,86081.0,86078.0,0.12819124]
[1741402333966,0.1065,86080.0,86078.0,0.12819124]
[1741402334165,0.1065,86080.0,86078.0,0.07029608]
[1741402334573,0.1065,86080.0,86078.0,0.28279608]
[1741402336475,0.2227037,86080.0,86078.0,0.28279608]
[1741402336979,0.1065,86080.0,86079.0,0.4770048]
[1741402337170,0.1065,86080.0,86079.0,0.41910964]
[1741402337371,0.00017363,86082.0,86081.0,0.1162021]
[1741402337773,0.00017363,86082.0,86081.0,0.24479934]
[1741402338373,0.00017363,86082.0,86081.0,0.12859724]
[1741402338575,0.00017363,86082.0,86081.0,0.24479934]
[1741402338771,0.00017363,86082.0,86081.0,0.1162021]
[1741402339169,0.00017363,86082.0,86081.0,0.4536427]
[1741402339969,0.00017363,86082.0,86081.0,0.3374406]
[1741402340169,0.00017363,86082.0,86081.0,0.27954544]
[1741402340574,0.11637443,86082.0,86081.0,0.1318406]
[1741402340971,0.11637443,86082.0,86080.0,0.1338576]
[1741402340972,0.1162021,86081.0,86080.0,0.1338576]
[1741402341183,0.3272021,86081.0,86080.0,0.1338576]
[1741402341479,0.1162072,86078.0,86076.0,0.12413702]
[1741402341680,0.1162096,86076.0,86074.0,0.1017]
[1741402341878,0.3272102,86075.0,86074.0,0.1017]
[1741402342082,0.26187848,86075.0,86074.0,0.1017]
[1741402342385,0.26187848,86075.0,86074.0,0.23492255]
[1741402342566,0.19654508,86075.0,86074.0,0.23492255]
[1741402342773,0.55734508,86075.0,86074.0,0.23492255]
[1741402342983,0.44113488,86075.0,86074.0,0.23492255]
[1741402343279,0.44113488,86075.0,86074.0,0.27992739]
[1741402344279,0.08033488,86075.0,86074.0,0.27992739]
[1741402344878,0.08033488,86075.0,86074.0,0.38562739]
[1741402345673,0.19654508,86075.0,86074.0,0.38562739]
[1741402346378,0.19654508,86075.0,86074.0,0.32773223]
[1741402347881,0.08033488,86075.0,86074.0,0.32773223]
[1741402349270,0.08033488,86075.0,86074.0,0.26983707]
[1741402349676,0.00048291,86075.0,86074.0,0.35835121]
[1741402350588,0.00048291,86075.0,86074.0,0.26983707]
[1741402351785,0.00048291,86075.0,86072.0,0.19231414]
[1741402351786,0.11669311,86075.0,86072.0,0.08851414]
[1741402351975,0.1162129,86073.0,86072.0,0.08851414]
[1741402352178,0.1162183,86069.0,86068.0,0.02867266]
[1741402352381,0.36148,86075.0,86065.0,0.73015406]
[1741402352583,0.4770224,86066.0,86065.0,0.72951406]
[1741402352782,0.4770224,86066.0,86065.0,0.83131406]
[1741402352984,0.4770224,86066.0,86065.0,0.9546884]
[1741402353585,0.41167714,86066.0,86065.0,0.98275037]
[1741402354582,0.1162224,86066.0,86065.0,0.98275037]
[1741402355177,0.0974,86067.0,86065.0,0.98275037]
[1741402355386,0.0974,86067.0,86065.0,1.04107841]
[1741402355687,0.213621,86067.0,86066.0,0.0999]
[1741402356085,0.213621,86067.0,86066.0,0.33689011]
[1741402356685,0.0974,86067.0,86066.0,0.33689011]
[1741402357781,0.213621,86067.0,86066.0,0.33689011]
[1741402358489,0.213621,86067.0,86066.0,0.27899495]
[1741402358791,0.0974,86067.0,86066.0,0.27899495]
[1741402359786,0.00060001,86079.0,86073.0,0.1162123]
[1741402359988,0.05827413,86082.0,86074.0,0.2082]
[1741402360183,0.058101,86081.0,86074.0,0.33265398]
[1741402360383,0.1162102,86075.0,86074.0,0.12445398]
[1741402360887,0.3608,86075.0,86066.0,0.22575398]
[1741402361094,0.4770197,86068.0,86067.0,0.13350396]
[1741402361590,0.4595,86068.0,86067.0,0.0756088]
[1741402361786,0.0987,86068.0,86067.0,0.0756088]
[1741402362187,0.0987,86068.0,86067.0,0.2756088]
[1741402363291,0.2149197,86068.0,86067.0,0.1769088]
[1741402363896,0.14957727,86068.0,86067.0,0.1769088]
[1741402364088,0.51037727,86068.0,86067.0,0.0756088]
[1741402364289,0.39415757,86068.0,86058.0,0.69677503]
[1741402364593,0.1162266,86063.0,86058.0,0.64090139]
[1741402364780,0.1162266,86063.0,86060.0,0.12607725]
[1741402364985,0.1162266,86063.0,86061.0,0.2085]
[1741402365395,0.0581121,86065.0,86062.0,0.12533308]
[1741402365589,0.1162264,86063.0,86062.0,0.12533308]
[1741402365994,0.1162264,86063.0,86062.0,0.15939505]
[1741402366389,0.1162264,86063.0,86062.0,0.26359505]
[1741402366691,0.1162264,86063.0,86062.0,0.37069505]
[1741402367489,0.1162264,86063.0,86062.0,0.31279989]